Cogmind - Beta 14 @@@ ROGUE MODE // 2024.10.06 @ 21:00:57 Player: Im100%Black Result: Destroyed by as-51646 with Assembled Heavy Rifle Performance ------------- Evolutions (0) 0 Regions Visited (2) 400 Robots Destroyed (10) 50 Value Destroyed (298) 298 Prototype IDs (0) 0 Alien Tech Used (0) 0 Bonus (-17) -17 TOTAL SCORE: 731 Bonus ------- Friendly Fire -17 Cogmind --------- Core Integrity 0/250 Matter 220/300 Energy 160/160 System Corruption 1% Temperature Cool (0) Movement Walking (260) Ox2 Location -10/Mines Parts ------- > --- POWER (1) -------- Light Nuclear Core > --- PROPULSION (2) --- Aluminum Leg > --- UTILITY (2) ------ Large Storage Unit > --- WEAPON (2) ------- Assault Rifle Grenade Launcher > --- INVENTORY (15) --- Ion Engine Ion Engine Aluminum Leg Small Matter Pod (1) Splice Drone Bay Small Laser Particle Gun Assault Rifle Peak State ------------ > --- POWER ------------ Light Nuclear Core > --- PROPULSION ------- Aluminum Leg Aluminum Leg > --- UTILITY ---------- Large Storage Unit Signal Interpreter > --- WEAPON ----------- Assault Rifle Assault Rifle > --- INVENTORY -------- Ion Engine Ion Engine Aluminum Leg Aluminum Leg Splice Drone Bay Small Laser Particle Gun Assault Rifle Grenade Launcher Grenade Launcher [Rating: 10] Favorites ----------- Power Light Ion Engine Engine Light Ion Engine Power Core Light Nuclear Core Propulsion Aluminum Leg Leg Aluminum Leg Utility Large Storage Unit Storage Large Storage Unit Processor Signal Interpreter Protection Light Armor Plating Weapon Assault Rifle Ballistic Gun Assault Rifle Launcher Grenade Launcher Build | -11 -10 -10 ------- Run | Yrd Mat Min Slots Evolved . | . . . Power . | . . . Propulsion . | . . . Utility . | . . . Weapon . | . . . Parts Attached 17 | 5 7 5 Power 3 | 1 1 1 Engine 2 | 1 1 . Core 1 | . . 1 Reactor . | . . . Propulsion 5 | 2 2 1 Treads . | . . . Leg 5 | 2 2 1 Wheel . | . . . Hover . | . . . Flight . | . . . Utility 3 | . 3 . Device . | . . . Storage 1 | . 1 . Processor 1 | . 1 . Hackware . | . . . Protection 1 | . 1 . Artifact . | . . . Weapon 6 | 2 1 3 Energy Gun . | . . . Energy Cannon . | . . . Ballistic Gun 4 | 2 1 1 Ballistic Cannon . | . . . Launcher 2 | . . 2 Special Weapon . | . . . Impact Weapon . | . . . Slashing Weapon . | . . . Piercing Weapon . | . . . Special Melee Weapon . | . . . Unidentified Prototypes . | . . . Parts Lost 7 | . 1 6 Power 1 | . . 1 Propulsion 2 | . . 2 Utility 2 | . 1 1 Weapon 2 | . . 2 Highest Loss Streak 5 | . 1 5 To Critical Strikes . | . . . Average Slot Usage (%) 93 | . 91 97 Engine 9 | . 13 4 Core 3 | . . 8 Leg 27 | . 27 27 Storage 13 | . 13 14 Processor 8 | . 4 13 Protection 2 | . 3 . Ballistic Gun 27 | . 27 26 Peak Build Rating 10 | 5 7 10 Average Rating 7 | 4 6 9 On Entrance 4 | . 5 7 Naked Turns . | . . . Heaviest Build 30 | 7 30 29 Greatest Support 20 | 20 20 20 Greatest Overweight (x) 2 | . 2 1 Average Overweight (x) . | . . 1 Largest Inventory Capacity 15 | 5 15 15 Average Capacity 13 | 5 14 15 Most Carried 11 | 1 7 11 Average Carried 6 | . 4 10 Final Capacity 15 | 5 15 15 Final Carried 8 | 1 7 8 Class Distribution -------------------- 100% | Mutant Dominant Class ---------------- Mutant | -10/Materials Mutant | -10/Mines Resources | -11 -10 -10 ----------- Run | Yrd Mat Min Matter Collected 515 | 235 104 176 Remotely . | . . . Salvage Created 429 | 79 201 149 Parts 18 | 7 7 4 Haulers Intercepted . | . . . Recyclers Shooed . | . . . Parts Field Recycled . | . . . Retrieved Matter . | . . . Parts Self-Destructed . | . . . Prevented . | . . . Kills | -11 -10 -10 ------- Run | Yrd Mat Min Combat Hostiles Destroyed 21 | 1 4 16 Guns 7 | 1 4 2 AOE 14 | . . 14 Classes Destroyed 3 | 2 . 1 Tunneler 3 | 3 . . Grunt 7 | 1 4 2 Assembled 14 | . . 14 Best Kill Streak 14 | 4 2 14 Combat Bots Only 14 | 1 2 14 Max Kills in Single Turn 5 | 1 1 5 Gunslinging . | . . . Exploded 5 | . . 5 Melee . | . . . Uniques/NPCs Destroyed . | . . . Combat | -11 -10 -10 -------- Run | Yrd Mat Min Hostile Shots Fired 92 | 2 33 57 Missed 30 | 2 9 19 Damage Taken 1008 | . 328 680 Core 256 | . 49 207 Absorbed by Shields . | . . . Core Remaining (%) 100 | 100 . . Volleys Fired 38 | 9 18 11 Largest 2 | 2 2 2 Hottest 50 | 40 40 50 Shots Fired 76 | 18 36 22 Gun 71 | 18 36 17 Cannon . | . . . Launcher 5 | . . 5 Special . | . . . Kinetic 71 | 18 36 17 Thermal . | . . . Explosive 5 | . . 5 Electromagnetic . | . . . Robot Hit Streak 16 | 5 14 16 Robot Miss Streak 3 | 2 1 3 Penetration Max . | . . . Secondary Targets 1 | . 1 . Max Gunslinging Chain 1 | . 1 . Shots Hit Robots 57 | 11 31 15 Core Hits 48 | 5 10 33 Critical Kills 1 | . 1 . Critical Parts Destroyed . | . . . Critical Strikes 1 | . 1 . Destroy 1 | . 1 . Melee Attacks . | . . . Impact . | . . . Slashing . | . . . Piercing . | . . . Sneak Attacks . | . . . Combat Hostiles . | . . . Follow-up Attacks . | . . . Damage Inflicted 1422 | 143 403 876 Guns 727 | 143 402 182 Cannons . | . . . Explosions 694 | . . 694 Melee . | . . . Ramming 1 | . 1 . Kinetic 727 | 143 402 182 Thermal . | . . . Explosive 694 | . . 694 Electromagnetic . | . . . Impact . | . . . Slashing . | . . . Piercing . | . . . Highest Corruption 1 | . . 1 Average Corruption 1 | . . 1 Corruption Purged . | . . . Corruption Blocked . | . . . Overload Shots . | . . . Overflow Damage . | . . . Projectiles . | . . . Explosions . | . . . Melee . | . . . Knockbacks . | . . . Impact . | . . . Kinetic . | . . . Secondary . | . . . Self-Inflicted Damage 67 | . . 67 Shots 2 | . . 2 Rammed . | . . . Targets Rammed 1 | . 1 . Kicked 1 | . 1 . Crushed . | . . . Highest Temperature 51 | . 51 2 Average Temperature 14 | . 14 2 Received Heat Transfer 277 | . 207 70 Siege Activations . | . . . Robots Corrupted . | . . . Combat Hostiles . | . . . Parts Fried . | . . . Impact Corruptions . | . . . Robots Melted . | . . . Combat Hostiles . | . . . Parts Melted . | . . . Heat Transferred . | . . . Parts Sabotaged . | . . . Parts Stolen . | . . . Parts Stripped . | . . . Power Chain Reactions . | . . . Alert | -11 -10 -10 ------- Run | Yrd Mat Min Peak Influence 137 | 35 137 63 Initial 22 | . 22 . Average 46 | 9 66 30 Maximum Alert Level . | . . . Low Security (%) 100 | 100 100 100 Level 1 . | . . . Level 2 . | . . . Level 3 . | . . . Level 4 . | . . . Level 5 . | . . . High Security . | . . . Max Security . | . . . Squads Dispatched 1 | . 1 . Investigation . | . . . Extermination . | . . . Reinforcement 1 | . 1 . Assault . | . . . Garrison . | . . . Intercept . | . . . Searches Triggered . | . . . Construction Impeded . | . . . Haulers Reinforced . | . . . Active Scanning Responses . | . . . Cargo Convoy Interrupts . | . . . Stealth | -11 -10 -10 --------- Run | Yrd Mat Min Distress Signals 2 | . 2 . Communications Jammed . | . . . Distress Signals . | . . . Times Spotted 31 | 1 8 22 Peak Tracking Total 13 | 1 3 13 Tactical Retreats 1 | . 1 . Traps | -11 -10 -10 ------- Run | Yrd Mat Min Traps Triggered 3 | . 3 . Indirectly . | . . . Trap Hack Attempts . | . . . Triggered . | . . . Disarmed . | . . . Reprogrammed . | . . . Reused . | . . . Traps Extracted . | . . . Installed . | . . . Triggered . | . . . Machines | -11 -10 -10 ---------- Run | Yrd Mat Min Machines Disabled . | . . . Max in Single Turn . | . . . Machines Repaired . | . . . Machines Dismantled . | . . . Machines Sabotaged . | . . . Overloaded Fab Kills . | . . . Hacking | -11 -10 -10 --------- Run | Yrd Mat Min Machines Accessed 1 | . . 1 Terminals . | . . . Fabricators . | . . . Repair Stations . | . . . Recycling Units . | . . . Scanalyzers . | . . . Garrison Access . | . . . Total Hacks 1 | . . 1 Successful 1 | . . 1 Failed . | . . . Catastrophic . | . . . Database Lockouts . | . . . Manual . | . . . Terminals . | . . . Fabricators . | . . . Repair Stations . | . . . Recycling Units . | . . . Scanalyzers . | . . . Garrison Access . | . . . Terminal Hacks 1 | . . 1 Open Door 1 | . . 1 Fabricator Hacks . | . . . Repair Station Hacks . | . . . Recycling Unit Hacks . | . . . Scanalyzer . | . . . Garrison Access Hacks . | . . . Unauthorized Hacks . | . . . Terminals . | . . . Fabricators . | . . . Repair Stations . | . . . Recycling Units . | . . . Scanalyzers . | . . . Garrison Access . | . . . Data Cores Recovered . | . . . Used . | . . . Hacking Detections . | . . . Full Trace Events . | . . . Feedback Events . | . . . Feedback Blocked . | . . . Robot Schematics Acquired . | . . . Robots Built . | . . . Authchips . | . . . Time . | . . . Total Robot Build Rating . | . . . Part Schematics Acquired . | . . . Parts Built . | . . . Authchips . | . . . Time . | . . . Total Part Build Rating . | . . . Parts Repaired . | . . . Time . | . . . Parts Recycled . | . . . Recycled Matter . | . . . Retrieved Matter . | . . . Retrieved Components . | . . . Parts Scanalyzed . | . . . Part Schematics Acquired . | . . . Parts Damaged . | . . . Bothacking | -11 -10 -10 ------------ Run | Yrd Mat Min Used RIF Installer . | . . . Robots Hacked . | . . . Non-combat . | . . . Combat . | . . . Robot Hacks Applied . | . . . Relay Couplers Released . | . . . Fabnet Peak Effective % . | . . . Robots Rewired . | . . . Allies Hacked . | . . . Hacks Repelled . | . . . Allies | -11 -10 -10 -------- Run | Yrd Mat Min Total Allies . | . . . Largest Group . | . . . Highest-Rated Group . | . . . Highest-Rated Ally . | . . . Total Orders . | . . . Ally Attacks . | . . . Total Damage . | . . . Kills . | . . . Allies Corrupted . | . . . Allies Melted . | . . . Intel | -11 -10 -10 ------- Run | Yrd Mat Min Robot Analysis Total . | . . . Derelict Logs Recovered 1 | . . 1 Drone Launches . | . . . Drone Recoveries . | . . . Exploration | -11 -10 -10 ------------- Run | Yrd Mat Min Turns Passed 951 | 98 476 377 Spaces Moved 437 | 62 209 166 Core 17 | 17 . . Treads . | . . . Legs 420 | 45 209 166 Wheels . | . . . Hover . | . . . Flight . | . . . Fastest Speed 50 | 50 120 190 Average Speed 176 | 100 187 190 Slowest Speed 260 | 120 260 190 Overloaded Moves . | . . . Propulsion Burnouts . | . . . Robots Hopped . | . . . Cave-ins Triggered . | . . . Exploration Rate (%) 29 | 6 44 39 Regions Visited 2 Branch Regions 1 Pre-discovered Areas . | . . . Known Exits Taken 1 | . 1 . Unknown Exits Taken 1 | 1 . . Scrap Searched 2 | . . 2 Spaces Dug . | . . . Terrain Destroyed 23 | . . 23 Melee . | . . . Projectile . | . . . AOE 23 | . . 23 Terrain Rammed . | . . . Walls Destroyed . | . . . Machines Disabled . | . . . Actions | -11 -10 -10 --------- Run | Yrd Mat Min Total 534 | 77 253 204 Wait 32 | 1 13 18 Move 435 | 61 208 166 Hop . | . . . Pick Up 11 | 1 6 4 Fast Attach 11 | 5 5 1 Attach 4 | . 1 3 Detach . | . . . Swap 2 | . 1 1 Drop . | . . . Fire 38 | 9 18 11 Melee . | . . . Ram . | . . . Kick 1 | . 1 . Crush . | . . . Escape Stasis . | . . . Rewire . | . . . Trap . | . . . Miscellaneous . | . . . Route ------- -11/Scrapyard -10/Materials -10/Mines (discovered 1 exit: Sub) History --------- Turn | Location | Event 2 | -11/Scrapyard | Met Revision 17 57 | -11/Scrapyard | Discovered new exit (range 8) 99 | -11/Scrapyard | Entered Materials 315 | -10/Materials | Build established: Mutant 565 | -10/Materials | Discovered new exit (range 6) 573 | -10/Materials | Identified exit to Mines 575 | -10/Materials | Entered Mines 582 | -10/Mines | Found the Drone Emporium 591 | -10/Mines | Found Prototype Device 633 | -10/Mines | Met a Derelict bent on vengeance 660 | -10/Mines | Identified exit to Subcaves 920 | -10/Mines | Assembled infested the area 943 | -10/Mines | Core integrity fell below 50% 945 | -10/Mines | Core integrity fell below 20% 952 | -10/Mines | Destroyed by as-51646 with Assembled Heavy Rifle Last Messages --------------- 00934_ as-31982 destroyed. [Achievement: Quick And Dirty] 00937_ K-01 Serf collects debris. [Achievement: Let's See Who's Tougher] 00937_ as-35000 destroyed. 00937_ as-77911 destroyed. 00939_ Assault Rifle destroyed. 00941_ K-01 Serf destroyed. 00942_ Aluminum Leg destroyed. 00943_ Grenade Launcher destroyed. 00944_ Signal Interpreter destroyed. 00944_ System corrupted by crushing effect (+1). 00945_ Knocked back. 00946_ as-54274 destroyed. 00946_ as-62979 destroyed. 00946_ as-50539 destroyed. 00946_ as-47760 destroyed. 00946_ as-32346 destroyed. 00947_ Aluminum Leg destroyed. [Achievement: First Step to Greatness] Map ----- +----------------------------------------------------+ | ?????????????????????????????????????????????????? | | ?????????????????????????????????????????????????? | | ?????????????????????????????????????????????????? | | ?????????????????????????????????????????????????? | | ?????????????????????????????????????????????????? | | ?????????????????????????????????????????????????? | | ?????????????????????????????????????????????????? | | ?????????????????????????????????????????????????? | | ?????????????????????????????????????????????????? | | ??????????????????#??????? ??????????????????????? | | ?????????????????? #?????? ?????????????????????? | | ?????????????????? #??### ?????????????????????? | | ??????????????????% ### ?????????????????????? | | ??????????????????? ?????????????????????? | | ??????????????????? %= a ?????????????????????? | | ????????????????????= % a##????????????????????? | | ????????????????????# a #????????????????????? | | ????????????????????# ???##???????????????? | | ????????????????????# % a #??# ##??????????????? | | ????????????????????# ### ##?????????????? | | ????????????????????# % ##????????????? | | ????????????????????# ##???#???????? | | ????????????????????# % ### ##??????? | | ????????????????????# ##???? #??????? | | ???????????????????## aa ##???? #??????? | | ??????????????????## @ #???? ????????? | | ??????????????????# ##???# #?????????? | | ??????????????????# ### ##?## #??????????? | | ?????????????????# #??## ## #??????????? | | ????????????????# #????## #??????????? | | ????????????????# #??????# #??????????? | | ????????????????# ??????## ## ##??????????? | | ????????????????# ?????## ##??###???????????? | | ????????????????## ??##### #?????????????????? | | ?????????????????# ??# #?????????????????? | | ?????????????????# ??# #### ##?????????????????? | | ?????????????????# #?# #??# #??????????????????? | | ????????????????? #?# #??# #??????????????????? | | ?????????????????# #?# #??# #??????????????????? | | ?????????????????# #?# #??# #??????????????????? | | ?????????????????# #?# #??# #??????????????????? | | ?????????????????# #?# #??# #??????????????????? | | ?????????????????# #?# #??# #??????????????????? | | ?????????????????# ### #??# #??????????????????? | | ?????????????????# #??# #??????????????????? | | ??????? ?????????# #####??# #??????????????????? | | ???????""" ??????# #??????# #??????????????????? | | ???????""" ##### #??????# #??????????????????? | | ???????""" #??????# #??????????????????? | | ??????# #??????# #??????????????????? | +----------------------------------------------------+ Best States ------------- Heat Dissipation 25 Energy Generation 14 Energy Capacity 160 Matter Stores 300 Matter Capacity 300 Sight Range 16 Terrain Scan Density 10 Armor Coverage 150 Evasion (%) 55 Item Schematics ----------------- None Robot Schematics ------------------ None Fabricated ------------ Nothing Alien Tech Used ----------------- None Achievements -------------- Crack Shot First Step to Greatness Let's See Who's Tougher Quick And Dirty Uninvited Guest Challenges ------------ None Game ------ Seed DisruptorFlakDesublimator Manual? 0 Play Time 00:11:24 Cumulative 0.1 hours Start 2024.10.06 @ 20:50:11 End 2024.10.06 @ 21:00:57 Sessions 1 Manual Loads 0 Difficulty Rogue Special Mode None Game No. 1 Rogue 1 Adventurer 0 Explorer 0 Win Type - Total 0 Types 0/0/0/0/0/0/0/0/0 Lore% 0 Gallery% 0 Achievement% 1 Wizard Run 0 Options --------- Layout 1 ASCII 0 Keyboard 0 Movement Numpad Keybinds 0 Fullscreen 1 Font 24/Smallcaps Map View 50x35 Zoom Use 0% Tactical HUD 1 Map Filters NONE Filters NONE Steam 1 RUN: 5f848f93-73b6-4f44-97d1-d4824a7d4e13